[Event "FTX Road to Miami Prelims 2022"]
[Site "Online"]
[Date "2022.07.04"]
[Round "1.6"]
[White "Erigaisi Arjun"]
[Black "Sevian, Samuel"]
[Result "1/2-1/2"]
[ECO "E20"]
[WhiteElo "2689"]
[BlackElo "2684"]
[Annotator "TA"]
[PlyCount "129"]
[EventDate "2022.07.10"]
[EventType "tourn"]
[EventCountry "NET"]
[SourceTitle "playchess.com"]
[Source "ChessBase"]
[SourceQuality "1"]
[TimeControl "40/5400+30:1800+30"]

{[%evp 13,129,16,9,0,21,31,41,-38,-27,-45,-43,-104,-22,-25,-39,-104,-94,-104,-95,-95,-98,-102,-107,-99,-100,-99,-104,-100,-21,-12,-11,-107,-107,-109,-128,-102,49,0,0,-164,-170,-262,-29,-290,-279,-265,-185,-240,-214,-484,-467,-456,-448,-427,-438,-496,-266,-253,0,0,0,0,24,-9,-9,-9,-14,-15,-9,-10,-4,-4,-4,-13,-13,-15,-18,-25,-6,-28,0,0,0,0,12,12,12,8,8,0,0,0,0,0,0,0,0,0,8,8,8,8,8,8,8,8,8,8,8,8,8,8,8,8,8,8,8,0]} 1. d4 {[%emt 1:15:40]} Nf6 {[%emt 1:15:40]} 2. c4 {[%emt 0:00:22]} e6 {[%emt 0:00:22]} 3. Nc3 {[%emt 0:00:22]} Bb4 {[%emt 0:00:21]} 4. f3 {[%emt 0:00:21]} c5 {[%emt 0:00:36]} 5. d5 {[%emt 0:00:22]} O-O {[%emt 0:00:30]} 6. e4 {[%emt 0:00:22]} d6 {[%emt 0:00:22]} 7. Nge2 {[%emt 0:00:24]} b5 {[%emt 0:01:07]} 8. Ng3 {[%emt 0:00:30] E20: Nimzo-Indian: 4 g3 and 4 f3.} (8. cxb5 exd5 9. exd5 Nbd7 $15) 8... Re8 {[%emt 0:04:17]} 9. Bf4 {[%emt 0:00:24]} (9. cxb5 exd5 10. Be2 Qb6 $15) 9... Qb6 {[%emt 0:01:57] [#]} 10. Bg5 $146 {[%emt 0:06:42]} (10. cxb5 exd5 11. Be2 Nbd7 12. exd5 c4 $15) (10. Kf2 $14) ({Predecessor:} 10. Bd2 exd5 11. Nxd5 Nxd5 12. cxd5 Bxd2+ 13. Qxd2 Nd7 14. Be2 c4 15. h4 Ne5 16. h5 {0-1 (31) Smith,A (2469)-Cramling,P (2479) Eskilstuna 2019}) 10... Nbd7 $15 {[%emt 0:00:46]} 11. dxe6 {[%emt 0:00:37]} fxe6 {[%emt 0:00:34]} 12. cxb5 {[%emt 0:03:12]} (12. Rb1 $15) 12... d5 $1 $17 {[%emt 0:00:33] Threatening ...c4.} 13. a3 {[%emt 0:00:22]} (13. exd5 exd5+ 14. Be2 c4 $17) 13... Ba5 {[%emt 0:00:40] ...c4 is the strong threat.} 14. Bd2 {[%emt 0:00:39]} (14. exd5 exd5+ 15. Be2 c4 $17) ({White should try} 14. Be3 $1 $15) 14... c4 {[%emt 0:00:36]} 15. Be2 {[%emt 0:02:42]} Bb7 {[%emt 0:02:16]} 16. b4 {[%emt 0:00:30] Inhibits Nc5.} cxb3 $1 {[%emt 0:00:30]} 17. Na4 {[%emt 0:00:21]} Qd4 {[%emt 0:02:39]} 18. Bxa5 {[%emt 0:00:22]} Qxa4 {[%emt 0:00:21]} 19. Bb4 {[%emt 0:01:12]} dxe4 {[%emt 0:00:23]} 20. fxe4 {[%emt 0:01:08]} Rad8 {[%emt 0:01:04]} (20... b2 $6 21. Rb1 Qxd1+ 22. Bxd1 $11) (20... a5 $17 21. bxa6 Bxa6) 21. O-O $1 $11 {[%emt 0:00:23]} Nc5 $36 {[%emt 0:01:23][%cal Bd7c5,Bc5e4,Be4g3][%mdl 2080] Black is pushing.} 22. Qb1 {[%emt 0:01:59]} (22. Qe1 $11 Ncxe4 23. Rb1) 22... Ncxe4 $17 {[%emt 0:00:35][%cal Od8d2] Strongly threatening ...Rd2!} 23. Qb2 {[%emt 0:00:40] Inhibits Rd2.} Nxg3 {[%emt 0:00:50]} 24. hxg3 {[%emt 0:00:20] aiming for Rxf6.} Nd5 {[%emt 0:00:54]} ({Black should play} 24... a5 $1 $17 {[%cal Ra5b4]} 25. bxa6 Bxa6 26. Bxa6 Qxa6 27. Qxb3 Qb6+ 28. Kh1 Rd5) 25. Bh5 {[%emt 0:01:27]} (25. Rac1 $1 $14 {is more appropriate.}) 25... g6 $11 {[%emt 0:01:36]} 26. Qe5 $2 {[%emt 0:00:29]} (26. Qf2 $11 {and White stays safe.} gxh5 27. Qf7+ Kh8 28. Qxh5) 26... Qxb5 $19 {[%emt 0:00:43]} (26... gxh5 27. Qg5+ Kh8 28. Rf7 Rg8 29. Qe5+) (26... Nxb4 27. Bxg6 (27. axb4 $2 Qxb4 28. Bf3 Bxf3 $19) 27... Bf3 28. Rxf3 hxg6 29. Rf6 Re7 30. Rxg6+ Kf7 31. Rf1+ Ke8 32. Rg8+ Kd7 33. Rd1+ Nd5 34. Rxd5+ exd5 35. Qxd5+ Kc8 36. Qxd8+ Kb7 37. Qb8#) 27. Kh2 {[%emt 0:01:48] [#]} (27. Rf2 $142) 27... Qb6 $2 {[%emt 0:00:21]} (27... gxh5 28. Qg5+ Kh8 29. Rf7 Rg8 30. Qe5+) (27... Nc7 $1 $19 {[%mdl 512]} 28. Qxb5 (28. Qxc7 $2 Rd7 $19) 28... Nxb5) 28. Bd2 $2 {[%emt 0:00:37][%mdl 8192]} Qc7 {[%emt 0:00:25]} (28... gxh5 29. Qg5+ Kh8 30. Rf7) 29. Qg5 {[%emt 0:00:27]} Qe7 {[%emt 0:00:21]} 30. Bd1 {[%emt 0:00:28] [#]} (30. Bf3 {was necessary.}) 30... Ba6 $1 {[%emt 0:00:53]} 31. Re1 {[%emt 0:00:26]} (31. Qxe7 Rxe7 32. Rf3) 31... Qxg5 {[%emt 0:00:30]} 32. Bxg5 {[%emt 0:00:20]} Rb8 {[%emt 0:00:20] White must now prevent ...b2.} 33. Rb1 {[%emt 0:00:29]} b2 {[%emt 0:00:29]} 34. Ba4 {[%emt 0:00:34]} Rec8 {[%emt 0:00:33]} ({Not} 34... Bb5 35. Bb3 $17) (34... Rf8 $142 35. Bd7 Nc3 36. Bxe6+ Kg7) 35. Bd7 {[%emt 0:00:25]} Nc3 $2 {[%emt 0:00:39]} (35... Rc5 $19 36. Bxe6+ Kg7) 36. Bxe6+ $11 {[%emt 0:00:28] This bishop pair is nice.} Kg7 {[%emt 0:00:22]} 37. Bxc8 {[%emt 0:00:27]} Bxc8 {[%emt 0:00:21]} 38. Bf4 {[%emt 0:00:43]} Rb5 {[%emt 0:00:25] And now ...Kf7 would win.} (38... Nxb1 $2 39. Bxb8 Nxa3 40. Be5+ Kf7 41. Bxb2 $16 (41. Rf1+ Ke6 $16)) 39. Rxb2 {[%emt 0:00:41]} Rxb2 {[%emt 0:00:23]} 40. Be5+ {[%emt 0:00:21]} Kf7 {[%emt 0:00:25] Hoping for ...Rc2.} 41. Bxc3 {[%emt 0:30:20][%mdl 4096] Endgame KRB-KRB} ({But not} 41. Rf1+ Ke6 42. Bxc3 Rc2 $15) 41... Rc2 {[%emt 0:30:29]} 42. Bb4 {[%emt 0:00:24]} Rc7 {[%emt 0:00:22]} 43. Rf1+ {[%emt 0:00:24]} Kg8 {[%emt 0:00:37]} 44. Rf8+ {[%emt 0:00:30]} Kg7 {[%emt 0:00:22]} 45. Rd8 {[%emt 0:00:20]} Bf5 {[%emt 0:00:29]} 46. Bd6 {[%emt 0:00:29]} Rb7 {[%emt 0:00:27]} 47. Bc5 {[%emt 0:00:34] The position is equal.} h5 {[%emt 0:01:16]} 48. Ra8 {[%emt 0:00:29]} Be4 {[%emt 0:00:23]} 49. Rxa7 {[%emt 0:00:45]} Rxa7 {[%emt 0:00:21]} 50. Bxa7 {[%emt 0:00:20] KB-KB} Bc6 {[%emt 0:00:21]} 51. Kg1 {[%emt 0:00:23]} Kf6 {[%emt 0:00:21]} 52. Kf2 {[%emt 0:00:21]} Kf5 {[%emt 0:00:21]} 53. Bd4 {[%emt 0:00:21]} g5 {[%emt 0:00:21]} 54. Bc3 {[%emt 0:00:21]} Kg4 {[%emt 0:00:21]} 55. Bb4 {[%emt 0:00:21]} h4 {[%emt 0:00:21]} 56. gxh4 {[%emt 0:00:21]} gxh4 {[%emt 0:00:20]} 57. Be7 {[%emt 0:00:22]} h3 {[%emt 0:00:21]} 58. gxh3+ {[%emt 0:00:20]} Kxh3 {[%emt 0:00:20]} 59. Ke3 {[%emt 0:00:20]} Be8 {[%emt 0:00:21]} 60. Kd4 {[%emt 0:00:20]} Kg4 {[%emt 0:00:20]} 61. Kc5 {[%emt 0:00:21]} Kf5 {[%emt 0:00:21]} 62. Kb4 {[%emt 0:00:20]} Ke6 {[%emt 0:00:20]} 63. Bc5 {[%emt 0:00:20]} Kd5 {[%emt 0:00:21]} 64. a4 {[%emt 0:00:20]} Bxa4 {[%emt 0:00:21]} 65. Kxa4 {[%emt 0:00:20] And White is the lucky defender.  Weighted Error Value: White=0.32/Black=0.25 (precise)} 1/2-1/2

[Event "FTX Road to Miami Prelims 2022"]
[Site "Online"]
[Date "2022.07.04"]
[Round "1.7"]
[White "Ju, Wenjun"]
[Black "Tari, Aryan"]
[Result "0-1"]
[ECO "D37"]
[WhiteElo "2560"]
[BlackElo "2672"]
[Annotator "TA"]
[PlyCount "120"]
[EventDate "2022.07.10"]
[EventType "tourn"]
[EventCountry "NET"]
[SourceTitle "playchess.com"]
[Source "ChessBase"]
[SourceQuality "1"]
[TimeControl "40/5400+30:1800+30"]

{[%evp 9,120,33,27,22,33,27,35,23,27,35,41,8,27,29,26,0,0,9,41,17,8,11,22,21,5,18,30,-51,-44,-33,-18,-13,-19,-30,-30,-30,-36,-61,-42,-70,-75,-72,-64,-67,-60,-62,-66,-65,-67,-64,-50,-106,-75,-99,-91,-94,-85,-70,-31,-35,0,-16,-16,-16,0,0,0,0,0,0,0,-12,-12,-14,-10,-12,-12,-12,-12,-12,-12,-12,-12,-12,-12,-12,-12,-12,-12,-12,-8,-10,0,-15,0,-13,0,0,0,-13,-13,-66,-66,-193,-189,-29985,-29986,-29986,-29987,-29987,-29988,-29993,-29994]} 1. d4 {[%emt 1:15:40]} Nf6 {[%emt 1:15:40]} 2. c4 {[%emt 0:00:24]} e6 {[%emt 0:00:21]} 3. Nf3 {[%emt 0:00:21]} d5 {[%emt 0:00:22]} 4. Nc3 {[%emt 0:00:21]} h6 {[%emt 0:00:51]} 5. g3 {[%emt 0:00:43]} Bd6 {[%emt 0:00:21]} 6. Bg2 {[%emt 0:00:42] D37: Queen's Gambit Declined: 5 Bf4.} O-O {[%emt 0:00:21]} 7. O-O {[%emt 0:00:26]} Nc6 {[%emt 0:00:22]} 8. b3 {[%emt 0:01:38] White is slightly better.} dxc4 {[%emt 0:00:23]} 9. bxc4 {[%emt 0:00:21]} e5 {[%emt 0:00:21]} 10. e3 {[%emt 0:01:17]} exd4 {[%emt 0:00:34]} 11. exd4 {[%emt 0:00:23] [#]} Bf5 $146 {[%emt 0:00:21]} ({Predecessor:} 11... Re8 12. Be3 Bf5 13. Qb3 b6 14. c5 bxc5 15. dxc5 Rxe3 16. fxe3 Bxc5 17. Kh1 Bxe3 {1-0 (39) Howell,D (2658)-Yakubboev,N (2621) Riga 2021}) 12. Bb2 {[%emt 0:00:36]} Re8 {[%emt 0:01:01]} 13. Nb5 {[%emt 0:01:29]} Be4 {[%emt 0:02:42]} 14. Nxd6 {[%emt 0:00:27]} cxd6 {[%emt 0:00:47]} 15. d5 {[%emt 0:01:01]} Na5 {[%emt 0:00:37]} 16. Rc1 {[%emt 0:00:28]} Rc8 {[%emt 0:01:16]} 17. Qd4 {[%emt 0:01:36]} Qb6 {[%emt 0:04:29]} 18. Nd2 {[%emt 0:06:44]} (18. Qxb6 $11 axb6 19. Bxf6 gxf6 20. Rfe1) 18... Qxd4 $15 {[%emt 0:02:50]} 19. Bxd4 {[%emt 0:00:20] This bishop pair is nice.} Bd3 {[%emt 0:00:21][%cal Be4d3,Bd3e2,Be2c4,Bc4d5][%mdl 32]} 20. Rfd1 {[%emt 0:00:43]} Nxc4 {[%emt 0:01:45]} 21. Rc3 {[%emt 0:03:09]} Be2 {[%emt 0:02:00]} 22. Rdc1 {[%emt 0:00:23][%cal Rd2c4]} b5 {[%emt 0:00:21]} 23. Nxc4 {[%emt 0:02:27]} Bxc4 {[%emt 0:00:31]} 24. Bxa7 {[%emt 0:00:23][%cal Oa2a4]} Ra8 {[%emt 0:00:29]} 25. Ra3 {[%emt 0:00:28]} Re2 {[%emt 0:02:28]} 26. Bc5 {[%emt 0:00:24]} Rae8 {[%emt 0:00:21] [#] Hoping for ...Re1+.} 27. Bb4 {[%emt 0:00:26] Against Re1+} Nxd5 {[%emt 0:00:56]} 28. Bxd5 {[%emt 0:00:36]} Bxd5 {[%emt 0:00:20]} 29. Ra5 {[%emt 0:00:29]} Rb2 {[%emt 0:01:12] 0x0.0022fd4ef2abdp-1022s more active pieces.} 30. a3 {[%emt 0:00:33]} (30. Rxb5 $15 Bxa2 31. Ra5) 30... Bf3 {[%emt 0:00:32]} 31. Rxb5 {[%emt 0:00:41]} d5 {[%emt 0:00:26][%cal Bd6d5,Bd5d4][%mdl 32]} 32. Rb6 {[%emt 0:00:31]} d4 {[%emt 0:00:30] Strongly threatening ...Ree2.} 33. Rd6 {[%emt 0:00:23]} Ree2 {[%emt 0:00:20]} (33... Re4 $5 {[%cal Rb2b3]}) 34. Rf1 {[%emt 0:00:23]} Bg4 {[%emt 0:00:23]} 35. Bc5 {[%emt 0:00:31]} Bh3 {[%emt 0:00:43][%cal Oe2f2]} 36. Bxd4 {[%emt 0:00:24]} Bxf1 {[%emt 0:00:55]} 37. Bxb2 $11 {[%emt 0:00:21][%mdl 4096] Endgame KRB-KRB} Bh3 {[%emt 0:00:20][%cal Re2e1]} 38. Bc3 {[%emt 0:00:31] Inhibits Re1+.} Rc2 {[%emt 0:00:21] ( -> ...Rc1+)} 39. Be1 {[%emt 0:00:23]} Ra2 {[%emt 0:00:53]} (39... Rc1 $5 40. Rd8+ Kh7 $11) 40. Rd1 {[%emt 0:00:27]} Rxa3 {[%emt 0:00:23]} 41. Rc1 {[%emt 0:30:24]} h5 {[%emt 0:30:22]} 42. Bd2 {[%emt 0:00:22]} Ra2 {[%emt 0:00:21]} 43. Be3 {[%emt 0:00:23]} f6 {[%emt 0:00:20]} 44. Bd4 {[%emt 0:00:27]} Kh7 {[%emt 0:00:24]} 45. Ra1 {[%emt 0:00:24]} Rc2 {[%emt 0:00:21]} 46. Be3 {[%emt 0:00:22]} Kg6 {[%emt 0:00:24]} 47. Rc1 {[%emt 0:00:21]} Ra2 {[%emt 0:00:22]} 48. Rb1 {[%emt 0:00:24]} Kf5 {[%emt 0:00:28]} 49. Rc1 {[%emt 0:00:40]} g5 {[%emt 0:00:23]} 50. Rb1 {[%emt 0:00:23]} Ke4 {[%emt 0:00:24]} 51. Rc1 {[%emt 0:00:23]} h4 {[%emt 0:00:56]} 52. Rb1 {[%emt 0:00:25]} hxg3 {[%emt 0:00:53]} 53. hxg3 {[%emt 0:00:22]} Bg4 {[%emt 0:00:21]} 54. Re1 {[%emt 0:00:35]} Be2 {[%emt 0:00:41]} 55. g4 {[%emt 0:01:10]} (55. Kg2 $11) 55... Kf3 $1 $15 {[%emt 0:00:31]} 56. Bd4 {[%emt 0:00:23] [#] Loses the game.} (56. Kh2 $15) 56... Ra4 $1 $19 {[%emt 0:00:26]} ({And not} 56... Kxg4 57. Bxf6 Bf3 58. Kh2 $11) 57. Bxf6 {[%emt 0:00:29]} (57. Bc5 $19) 57... Rxg4+ {[%emt 0:00:21] Black mates.} 58. Kh2 {[%emt 0:00:20]} Kxf2 {[%emt 0:00:32][%cal Rg4h4]} 59. Rxe2+ {[%emt 0:00:37]} Kxe2 {[%emt 0:00:22]} 60. Kh3 {[%emt 0:00:32]} Kf3 {[%emt 0:00:21] Weighted Error Value: White=0.25 (precise) /Black=0.05 (flawless)} 0-1

[Event "FTX Road to Miami Prelims 2022"]
[Site "Online"]
[Date "2022.07.04"]
[Round "1.8"]
[White "Giri, Anish"]
[Black "Xiong, Jeffery"]
[Result "0-1"]
[ECO "C42"]
[WhiteElo "2760"]
[BlackElo "2691"]
[Annotator "TA"]
[PlyCount "118"]
[EventDate "2022.07.10"]
[EventType "tourn"]
[EventCountry "NET"]
[SourceTitle "playchess.com"]
[Source "ChessBase"]
[SourceQuality "1"]
[TimeControl "40/5400+30:1800+30"]

{[%evp 15,118,30,27,20,13,6,31,25,14,11,20,13,22,24,42,27,28,16,43,38,35,15,6,0,21,-7,-4,-15,-12,-8,-10,-10,-5,-6,-6,-10,-7,-3,-2,-9,-4,-6,-3,-23,-34,-31,-31,-29,-27,-42,-33,-49,-31,-88,-66,-76,-72,-89,-70,-173,-168,-166,-159,-229,-238,-230,-224,-248,-249,-563,-558,-682,-641,-546,-541,-550,-472,-771,-821,-1339,-963,-928,-844,-879,-873,-850,-854,-967,-847,-1285,-1285,-1183,-1204,-995,-494,-29971,-29973,-29964,-29966,-7355,-5097,-4965,-4965,-4619,-4577]} 1. e4 {[%emt 1:15:40]} e5 {[%emt 1:15:40]} 2. Nf3 {[%emt 0:00:22]} Nf6 {[%emt 0:00:21]} 3. Nxe5 {[%emt 0:00:26]} d6 {[%emt 0:00:22]} 4. Nf3 {[%emt 0:00:21]} Nxe4 {[%emt 0:00:21]} 5. d4 {[%emt 0:00:21]} d5 {[%emt 0:00:21]} 6. Bd3 {[%emt 0:00:21]} Be7 {[%emt 0:00:21]} 7. O-O {[%emt 0:00:25]} Bf5 {[%emt 0:00:22]} 8. Re1 {[%emt 0:01:54]} O-O {[%emt 0:00:25]} 9. Nbd2 {[%emt 0:00:21][%cal Rd2e4,Bb1d2,Bd2f1,Bf1g3][%mdl 32] is now more promising than 9.c4. C42: Petroff Defence: 3 Nxe5 and unusual White 3rd moves.} Nd6 $1 {[%emt 0:00:21]} 10. Nf1 {[%emt 0:00:21]} Bg6 $5 {[%emt 0:00:22][%mdl 4] A promising side line.} 11. Ne5 {[%emt 0:00:22] White is slightly better.} Bxd3 {[%emt 0:00:24] [#]} 12. Nxd3 $146 {[%emt 0:00:44]} ({Predecessor:} 12. Qxd3 Nd7 13. Ng3 Re8 14. Bf4 c6 15. Re2 Nf8 16. Rae1 Ne6 17. Bd2 Bf6 18. Nh5 Bxe5 19. dxe5 {0-1 (41) Ivic,V (2628)-Xiong,J (2688) Chess.com INT 2022}) 12... Re8 {[%emt 0:01:05]} 13. Ng3 {[%emt 0:00:28]} Nd7 {[%emt 0:00:24]} 14. c3 {[%emt 0:00:26]} Nf8 {[%emt 0:02:14]} 15. Qb3 {[%emt 0:01:21]} c6 {[%emt 0:00:23]} 16. Bf4 {[%emt 0:00:22] Threatening Bxd6.} b6 {[%emt 0:01:26]} 17. Qa4 {[%emt 0:00:54]} Nb5 {[%emt 0:01:27]} 18. Ne5 {[%emt 0:01:16]} Qc8 {[%emt 0:00:21]} 19. c4 {[%emt 0:00:53]} dxc4 {[%emt 0:01:34]} 20. Qxc4 {[%emt 0:02:37]} Qe6 {[%emt 0:01:22] White should prevent ...Qxc4.} 21. Qxe6 {[%emt 0:03:19]} (21. d5 {is more complex.} Qxd5 22. Qxc6 Qxc6 23. Nxc6 Bf6 24. Nf5) 21... Nxe6 {[%emt 0:00:23]} 22. Nxc6 {[%emt 0:00:20]} Nbxd4 {[%emt 0:01:52]} 23. Nxe7+ {[%emt 0:01:10]} Rxe7 {[%emt 0:00:20][%cal Be8e7,Be7d7,Bd7d5][%mdl 32]} 24. Rac1 {[%emt 0:00:24] Prevents Nc2.} Rd7 {[%emt 0:00:23]} 25. Be3 {[%emt 0:00:31]} Rad8 {[%emt 0:00:23]} 26. Kf1 {[%emt 0:00:27]} f6 {[%emt 0:00:31]} 27. b4 {[%emt 0:01:01]} Kf7 {[%emt 0:00:26]} 28. a4 {[%emt 0:01:14]} Rd5 {[%emt 0:02:35]} 29. Ne4 {[%emt 0:00:52]} Nf5 {[%emt 0:00:41]} 30. Rc4 {[%emt 0:01:55]} Nxe3+ {[%emt 0:01:15]} 31. fxe3 {[%emt 0:00:50]} Rd3 {[%emt 0:01:23]} 32. Nc3 {[%emt 0:01:30]} R8d7 {[%emt 0:00:36]} 33. Kf2 $1 {[%emt 0:01:13]} h5 $36 {[%emt 0:00:57][%mdl 2048] Black has good play.} 34. h4 {[%emt 0:00:33]} (34. a5 $15) 34... Nf8 $17 {[%emt 0:00:29] Black converts the advantage convincingly.} 35. Nb5 {[%emt 0:00:48]} Ng6 {[%emt 0:00:50] ...Ne5 is the strong threat.} 36. Rd4 {[%emt 0:01:15]} R7xd4 {[%emt 0:00:23]} 37. exd4 {[%emt 0:01:09]} ({White has to play} 37. Nxd4 $15 Ne5 38. b5) 37... Nxh4 $19 {[%emt 0:00:21]} 38. Nxa7 {[%emt 0:00:24]} Rxd4 $17 {[%emt 0:00:25][%mdl 4096] Endgame KRN-KRN} 39. Nc6 {[%emt 0:00:24]} (39. Rb1 $17) 39... Rc4 $19 {[%emt 0:00:27]} ({Inferior is} 39... Rd2+ 40. Re2 Rxe2+ 41. Kxe2) 40. Re7+ {[%emt 0:00:37] [#]} Kg6 $1 {[%emt 0:00:58]} ({Worse is} 40... Kf8 41. Rc7 Rc2+ 42. Ke3 Nxg2+ 43. Ke4 Re2+ 44. Kf3) 41. Re6 {[%emt 0:30:36]} Rc2+ {[%emt 0:31:04]} 42. Kg3 $2 {[%emt 0:00:47]} (42. Kf1 {was the crucial defense.}) 42... Kg5 {[%emt 0:00:46]} 43. a5 {[%emt 0:00:27]} bxa5 {[%emt 0:00:29]} 44. bxa5 {[%emt 0:00:21]} Rxg2+ {[%emt 0:00:24]} 45. Kh3 {[%emt 0:00:20]} Ra2 {[%emt 0:00:21] Strongly threatening ...Nf3.} 46. Re3 {[%emt 0:00:29] Inhibits Nf3.} (46. Re7 $142 g6 47. Nd8) 46... Kf4 {[%emt 0:01:30]} 47. Rb3 {[%emt 0:00:50]} g5 {[%emt 0:01:06]} 48. Rb4+ {[%emt 0:00:20]} Ke3 {[%emt 0:00:29]} 49. Rb3+ {[%emt 0:00:25]} Ke4 {[%emt 0:00:21]} 50. Rb4+ {[%emt 0:00:30]} Kd5 {[%emt 0:00:34]} 51. Rb6 {[%emt 0:00:25]} Kc5 {[%emt 0:00:42]} 52. Ne7 {[%emt 0:00:25] Against Nf5} Ra3+ {[%emt 0:01:21]} 53. Kh2 {[%emt 0:00:21]} g4 {[%emt 0:00:21][%cal Bg5g4,Bg4g3,Bg3g2][%mdl 32]} 54. Rc6+ {[%emt 0:00:53]} Kb5 {[%emt 0:00:24]} (54... Kd4 $142 {( -> ...g3+)} 55. Rc1 f5) 55. Rxf6 {[%emt 0:00:24]} (55. Rb6+ $19 Kc5 56. Rc6+ Kd4 57. Rxf6) 55... g3+ {[%emt 0:01:03]} 56. Kg1 {[%emt 0:00:21]} g2 {[%emt 0:00:34]} 57. Rb6+ {[%emt 0:00:22]} Ka4 {[%emt 0:00:36] Black is clearly winning.} 58. Rb1 {[%emt 0:00:22] [#] Against Ra1} Ra2 $1 {[%emt 0:00:21][%cal Rh4f3]} 59. Kh2 {[%emt 0:01:01]} Nf3+ {[%emt 0:00:23] Weighted Error Value: White=0.42/Black=0.12 (very precise)} 0-1

[Event "FTX Road to Miami Prelims 2022"]
[Site "Online"]
[Date "2022.07.04"]
[Round "2.1"]
[White "Niemann, Hans Moke"]
[Black "Xiong, Jeffery"]
[Result "0-1"]
[ECO "A34"]
[WhiteElo "2688"]
[BlackElo "2691"]
[Annotator "TA"]
[PlyCount "86"]
[EventDate "2022.07.10"]
[EventType "tourn"]
[EventCountry "NET"]
[SourceTitle "playchess.com"]
[Source "ChessBase"]
[SourceQuality "1"]
[TimeControl "40/5400+30:1800+30"]

{[%evp 17,86,0,40,0,25,-7,-9,-7,-8,1,1,-4,0,0,0,0,0,-26,-30,-110,-116,-110,-108,-101,-100,-92,-97,-90,-114,-277,-283,-264,-258,-273,-272,-363,-358,-283,-291,-277,-241,-374,-310,-250,-208,-429,-155,-152,-122,-133,-139,-679,-679,-679,-679,-679,-679,-679,-679,-679,-368,-361,-361,-815,-804,-672,-689,-1394,-1320,-1158,-1035]} 1. Nf3 {[%emt 1:15:40]} Nf6 {[%emt 1:15:40]} 2. c4 {[%emt 0:00:32]} c5 {[%emt 0:00:23]} 3. Nc3 {[%emt 0:00:27]} d5 {[%emt 0:00:22]} 4. cxd5 {[%emt 0:00:43]} Nxd5 {[%emt 0:00:19]} 5. g3 {[%emt 0:00:21]} Nc6 {[%emt 0:00:24]} 6. Bg2 {[%emt 0:00:22]} Nc7 {[%emt 0:00:21]} 7. O-O {[%emt 0:00:23]} e5 {[%emt 0:00:22]} 8. d3 {[%emt 0:00:21]} Be7 {[%emt 0:00:28]} 9. Nd2 {[%emt 0:00:24][%cal Bf3d2,Bd2c4,Bc4e3][%mdl 32]} Be6 {[%emt 0:00:22] 9...0-0 is a critical line.} 10. Nc4 {[%emt 0:00:54] A34: Symmetrical English: 2 Nc3, lines with ...d5.} (10. Bxc6+ $5 bxc6 11. Nc4 $11) 10... Nd5 {[%emt 0:01:14]} 11. Ne3 {[%emt 0:00:26][%cal Re3d5]} (11. Qb3 {keeps more tension.} Nd4 12. Qa4+ b5 13. Nxb5 Nxe2+ 14. Kh1) 11... Nb6 {[%emt 0:00:21]} 12. b3 {[%emt 0:00:40] [#] The position is equal.} Qd7 $5 $146 {[%emt 0:00:43][%mdl 8] New and interesting.} ({Predecessor:} 12... Rc8 13. Bb2 O-O 14. Rc1 f6 15. Nc4 Re8 16. Rc2 Qd7 17. Nxb6 axb6 18. Na4 Qd8 {½-½ (26) Scarella,E (2367)-Lafuente,P (2435) Vicente Lopez 2005}) 13. Ba3 {[%emt 0:00:33]} O-O {[%emt 0:02:28]} 14. Rc1 {[%emt 0:00:39]} Rfc8 {[%emt 0:01:29]} 15. Nc4 {[%emt 0:00:57]} Bh3 {[%emt 0:01:05]} 16. Bxh3 {[%emt 0:00:58]} Qxh3 {[%emt 0:00:22]} 17. Bb2 {[%emt 0:00:33]} Rd8 {[%emt 0:00:50]} 18. Ne4 {[%emt 0:00:56]} (18. Qd2 $11) 18... Nxc4 $17 {[%emt 0:01:02]} 19. Rxc4 {[%emt 0:01:02]} f5 {[%emt 0:00:50][%cal Bf7f5,Bf5f4][%mdl 32]} 20. Nxc5 {[%emt 0:00:42]} Rd6 {[%emt 0:01:01]} 21. f3 {[%emt 0:00:47]} (21. Bc1 $2 f4 22. Rxf4 exf4 23. Bxf4 Rd5 $19) 21... b5 {[%emt 0:01:13][%mdl 1024] Black has strong compensation.} (21... Rh6 22. Rf2 $14) 22. Rc3 {[%emt 0:00:50]} Nb4 $1 $40 {[%emt 0:00:59][%cal Oe7h4][%mdl 128] Strongly threatening ...Bh4! Black goes for the king. Black is more active.} (22... Rh6 $6 23. Rf2 $11) 23. e4 $2 {[%emt 0:05:08]} (23. Rf2 $17) 23... f4 $19 {[%emt 0:02:50]} (23... Rh6 24. Qe2 $11) 24. g4 {[%emt 0:01:21] [#]} h5 $1 {[%emt 0:00:23]} (24... Rh6 25. Qd2 $11) 25. gxh5 {[%emt 0:00:38]} Qxh5 {[%emt 0:01:09]} (25... Nxa2 26. Rc2 Nb4 27. Rd2 (27. Bxe5 Rh6 $17) 27... Qxh5 28. d4 $15) 26. Qe2 {[%emt 0:00:30]} Nxa2 {[%emt 0:00:34]} 27. Rc2 {[%emt 0:00:27][%cal Od3d4]} Nb4 {[%emt 0:00:21]} 28. Rcc1 {[%emt 0:00:20]} Rad8 {[%emt 0:01:18] aiming for ...Rc6.} 29. Rfd1 {[%emt 0:01:42]} (29. Kh1 $142 Nxd3 30. Nxd3 Rxd3 31. Rcd1 Rxd1 32. Rxd1) 29... Rg6+ {[%emt 0:02:21]} (29... Rc6 30. d4 $17) 30. Kh1 {[%emt 0:00:24]} Rg3 {[%emt 0:00:21] ...Rh3 is the strong threat.} 31. Ba3 $2 {[%emt 0:03:00] [#]} ({Much worse is} 31. Ne6 Rd6 32. Nc5 (32. Rc8+ $2 Kf7 $19) 32... Rh6 $19) (31. d4 {might work better.} Qxf3+ 32. Qxf3 Rxf3 33. Ne6) 31... Nc6 $2 {[%emt 0:01:41]} (31... Na2 $1 $19 {[%mdl 512] is more deadly.} 32. Rc2 b4 33. Rxa2 Bxc5) 32. Ne6 $17 {[%emt 0:00:23]} Nd4 {[%emt 0:00:21] Chess con chili.} 33. Nxd4 {[%emt 0:00:52]} Bxa3 {[%emt 0:00:21]} 34. Nf5 {[%emt 0:00:45][%mdl 8192]} (34. Nc6 $17 Bxc1 35. Nxd8) 34... Bxc1 $19 {[%emt 0:00:23]} ({Stronger than} 34... Qxf3+ 35. Qxf3 Rxf3 36. Ra1 $19) 35. Nxg3 {[%emt 0:00:23]} fxg3 {[%emt 0:00:19]} 36. Rxc1 {[%emt 0:00:22] [#]} Rxd3 $3 {[%emt 0:00:22][%mdl 4608] Endgame KQR-KQR} 37. b4 {[%emt 0:01:41]} (37. Rc8+ Kh7) 37... Rxf3 {[%emt 0:00:39][%cal Of3f1] ( -> ...Rf1+!)} 38. Rg1 {[%emt 0:00:36] Inhibits Rf1.} Qxh2+ {[%emt 0:00:52]} 39. Qxh2 {[%emt 0:00:23]} gxh2 {[%emt 0:00:20]} 40. Rg5 {[%emt 0:00:24]} (40. Ra1) 40... Rb3 {[%emt 0:00:22] Black is clearly winning.} 41. Rxe5 {[%emt 0:30:22]} Rxb4 {[%emt 0:30:21]} 42. Kxh2 {[%emt 0:00:20]} a5 {[%emt 0:00:24][%cal Ba7a5,Ba5a4][%mdl 32]} 43. Kg3 {[%emt 0:01:09]} a4 {[%emt 0:00:21] Weighted Error Value: White=0.77/Black=0.20 (precise)} 0-1